[Event "121st Swiss Championship 2022"]
[Site "Samnaun-Compatsch"]
[Date "2022.07.06"]
[Round "4.5"]
[White "Angst, Oliver"]
[Black "Hakimifard, Ghazal"]
[Result "1/2-1/2"]
[ECO "D00"]
[WhiteElo "2203"]
[BlackElo "2296"]
[Annotator "TA"]
[PlyCount "127"]
[EventDate "2022.06.28"]
[EventType "swiss"]
[EventCountry "SUI"]
[SourceTitle "playchess.com"]
[Source "ChessBase"]
[SourceQuality "1"]
[TimeControl "40/5400+30:1800+30"]

{[%evp 9,127,-8,12,0,0,0,34,14,41,-29,-25,-18,-30,-27,-3,-37,-35,-43,-38,-30,-40,-38,-29,-39,-31,-41,-43,-55,-45,-57,-27,-69,-80,-76,-78,-85,-88,-102,-78,-59,-46,-53,-47,-57,-59,-77,-81,-76,-76,-75,-79,-103,-111,-83,-69,-162,-187,-245,-232,-332,-323,-501,-478,-509,-509,-509,-509,-490,-482,-409,-291,-291,-181,-1532,-201,-185,-35,-35,-25,-25,-9,-25,-25,-58,-47,-1220,-1017,-663,0,0,0,-2,-2,-9,-9,-9,-9,-9,-9,-9,-9,-9,-9,-9,-9,-9,-2,-9,0,-9,0,0,0,0,0,0,0,0,0,0]} 1. d4 {[%emt 0:02:04]} Nf6 {[%emt 0:01:08]} 2. Nc3 {[%emt 0:00:45]} d5 {[%emt 0:00:22]} 3. Bf4 {[%emt 0:00:06]} e6 {[%emt 0:00:26]} 4. Nb5 {[%emt 0:00:10]} Na6 {[%emt 0:01:26][%cal Bb8a6,Ba6c5,Bc5d3][%mdl 32]} 5. e3 {[%emt 0:02:39]} c6 {[%emt 0:04:00]} 6. Nc3 {[%emt 0:01:18] D00: 1 d4 d5: Unusual lines.} Be7 {[%emt 0:09:35]} 7. Nf3 {[%emt 0:00:28]} Qa5 {[%emt 0:03:11] [#]} 8. Bd3 $146 {[%emt 0:06:04] White is slightly better.} ({Predecessor:} 8. Nd2 Bb4 9. Ncb1 O-O 10. Bd3 Be7 11. c3 c5 12. O-O Qb6 13. Qc2 Bd7 14. a4 {1-0 (40) Fries Nielsen,J (2373)-Lovik,L (2310) Copenhagen 2013}) 8... c5 {[%emt 0:02:07]} 9. dxc5 {[%emt 0:06:14]} (9. O-O $14) 9... Nxc5 $11 {[%emt 0:01:38]} 10. O-O {[%emt 0:08:13]} O-O {[%emt 0:02:42]} 11. a3 {[%emt 0:05:35] [#] Strongly threatening b4.} Nxd3 {[%emt 0:03:38]} 12. Qxd3 {[%emt 0:04:02]} Bd7 {[%emt 0:03:27]} 13. Ne5 {[%emt 0:01:56]} Rfd8 {[%emt 0:02:11]} 14. Nxd7 {[%emt 0:01:59]} Rxd7 {[%emt 0:00:33]} 15. Ne2 {[%emt 0:05:53]} Rc8 {[%emt 0:03:21]} 16. Be5 {[%emt 0:07:14]} Ng4 {[%emt 0:06:16]} 17. Bc3 {[%emt 0:02:51]} Qc7 {[%emt 0:00:21][%csl Gg4][%cal Rc7h2]} 18. f4 {[%emt 0:03:48]} Qc4 {[%emt 0:02:59]} 19. Rf3 {[%emt 0:03:57]} Bf6 {[%emt 0:00:30]} 20. Rg3 {[%emt 0:03:08]} Bxc3 {[%emt 0:11:41]} 21. Qxc3 {[%emt 0:06:12]} Qxc3 {[%emt 0:00:45]} 22. Nxc3 {[%emt 0:00:06]} Nf6 {[%emt 0:02:07]} 23. Rd1 {[%emt 0:00:06]} Rc4 {[%emt 0:01:41]} 24. Rf3 {[%emt 0:06:52]} a6 {[%emt 0:00:30]} 25. Rf2 {[%emt 0:00:30]} g6 {[%emt 0:06:00]} 26. h3 {[%emt 0:07:14]} h5 {[%emt 0:01:20]} 27. Rfd2 {[%emt 0:00:40]} Rdc7 {[%emt 0:00:47]} 28. Rd4 {[%emt 0:00:56]} R4c6 {[%emt 0:05:08]} 29. R1d2 {[%emt 0:02:19]} Kg7 {[%emt 0:00:50]} 30. Kf2 {[%emt 0:00:14]} Rxc3 {[%emt 0:03:40]} 31. bxc3 {[%emt 0:00:06]} Ne4+ {[%emt 0:00:04]} 32. Rxe4 {[%emt 0:04:20]} dxe4 $15 {[%emt 0:00:04][%mdl 4096] Endgame KR-KR} 33. a4 {[%emt 0:03:35]} (33. Rd4 $142) 33... Rxc3 $19 {[%emt 0:00:30]} 34. Rd4 {[%emt 0:01:55]} (34. g4 $142) 34... Rxc2+ {[%emt 0:00:30]} 35. Kg3 {[%emt 0:00:30]} (35. Kf1 {keeps fighting.}) 35... h4+ {[%emt 0:02:29]} 36. Kxh4 {[%emt 0:00:41]} Rxg2 {[%emt 0:00:17]} 37. Rxe4 {[%emt 0:00:55]} b5 {[%emt 0:01:22]} 38. axb5 {[%emt 0:01:42]} axb5 {[%emt 0:00:00]} 39. Rd4 {[%emt 0:01:34]} Kh6 {[%emt 0:01:51] ( -> ...f6)} 40. Rd8 {[%emt 0:00:43]} b4 {[%emt 0:02:15] Threatens to win with ...b3.} 41. Rh8+ {[%emt 0:03:19]} Kg7 {[%emt 0:00:01]} 42. Rb8 {[%emt 0:00:15] [#]} f6 {[%emt 0:01:40]} (42... Rb2 $1 $19 {White must now prevent ...b3.} 43. Kg4 b3) 43. e4 $1 $15 {[%emt 0:04:30]} g5+ {[%emt 0:12:50]} ({But not} 43... Kh6 $6 44. Rh8+ Kg7 45. Rb8 $17) 44. fxg5 {[%emt 0:01:10]} fxg5+ {[%emt 0:00:01]} 45. Kh5 {[%emt 0:00:14]} Kf6 {[%emt 0:00:13]} 46. Rb5 {[%emt 0:13:02]} Rg3 {[%emt 0:05:10]} 47. h4 $2 {[%emt 0:01:26][%mdl 8192]} (47. Rxb4 $15 Rxh3+ 48. Kg4) 47... gxh4 $19 {[%emt 0:00:08]} 48. Kxh4 {[%emt 0:00:05]} Re3 $2 {[%emt 0:00:21]} (48... Rb3 $19 49. Kh5 Rb1 50. e5+ Kf5) 49. Rxb4 $11 {[%emt 0:00:10] The position is equal.} Ke5 {[%emt 0:00:04]} 50. Rb6 {[%emt 0:00:11]} Rxe4+ {[%emt 0:02:19]} 51. Kg3 {[%emt 0:00:06]} Ra4 {[%emt 0:02:07]} 52. Kf3 {[%emt 0:00:13]} Ra3+ {[%emt 0:00:04]} 53. Ke2 {[%emt 0:00:08]} Kf5 {[%emt 0:00:08]} 54. Rb4 {[%emt 0:00:42]} e5 {[%emt 0:00:19]} 55. Rc4 {[%emt 0:00:05]} Ke6 {[%emt 0:00:49]} 56. Rb4 {[%emt 0:00:26]} Kd5 {[%emt 0:00:08]} 57. Rh4 {[%emt 0:00:06]} Ra2+ {[%emt 0:03:00]} 58. Ke3 {[%emt 0:00:08]} Ra3+ {[%emt 0:00:03]} 59. Ke2 {[%emt 0:00:05]} e4 {[%emt 0:00:03]} 60. Rh8 {[%emt 0:00:05]} Kd4 {[%emt 0:00:05]} 61. Rd8+ {[%emt 0:00:07]} Ke5 {[%emt 0:00:05]} 62. Re8+ {[%emt 0:00:09]} Kd4 {[%emt 0:00:04]} 63. Rd8+ {[%emt 0:00:07]} Ke5 {[%emt 0:00:03]} 64. Re8+ {[%emt 0:00:10] Weighted Error Value: White=0.23 (precise) /Black=0.24 (precise)} 1/2-1/2

[Event "121st Swiss Championship 2022"]
[Site "Samnaun-Compatsch"]
[Date "2022.07.06"]
[Round "4.6"]
[White "Georgescu, Lena"]
[Black "Wyss, Jonas"]
[Result "0-1"]
[ECO "C17"]
[WhiteElo "2279"]
[BlackElo "2223"]
[Annotator "TA"]
[PlyCount "84"]
[EventDate "2022.06.28"]
[EventType "swiss"]
[EventCountry "SUI"]
[SourceTitle "playchess.com"]
[Source "ChessBase"]
[SourceQuality "1"]
[TimeControl "40/5400+30:1800+30"]

{[%evp 9,84,-11,27,18,18,18,18,18,21,18,10,10,25,-22,-52,-143,-131,-134,-136,-145,-129,-204,-179,-377,-393,-392,-368,-406,-386,-422,-414,-476,-490,-467,-403,-439,-422,-500,-510,-513,-414,-411,-283,-320,-298,-356,-354,-335,-298,-450,-450,-544,-524,-790,-769,-674,-392,-391,-327,-319,-316,-498,-497,-652,-674,-674,-660,-691,-631,-631,-624,-619,-614,-610,-587,-685,-571]} 1. e4 {[%emt 0:00:04]} e6 {[%emt 0:00:08]} 2. d4 {[%emt 0:00:09]} d5 {[%emt 0:00:06]} 3. Nc3 {[%emt 0:00:03]} Bb4 {[%emt 0:00:10]} 4. e5 {[%emt 0:00:05]} c5 {[%emt 0:00:08]} 5. Bd2 {[%emt 0:00:03]} Nh6 {[%emt 0:00:29]} 6. a3 {[%emt 0:00:23] C17: French: 3 Nc3 Bb4 4 e5 c5 sidelines.} Bxc3 {[%emt 0:00:24]} 7. Bxc3 {[%emt 0:00:10]} b6 {[%emt 0:01:28]} 8. Bb5+ {[%emt 0:01:33] The position is equal.} Bd7 {[%emt 0:00:32]} 9. Bd3 {[%emt 0:01:31]} Nc6 {[%emt 0:04:05]} 10. Nf3 {[%emt 0:03:12]} cxd4 {[%emt 0:01:19] [#]} 11. Bb4 $146 {[%emt 0:33:10]} (11. Bxd4 $142 Nxd4 12. Nxd4) ({Predecessor:} 11. Bxd4 Nxd4 12. Nxd4 f6 13. Qe2 fxe5 14. Qxe5 Qf6 15. Qxf6 gxf6 16. c3 e5 17. Nc2 {½-½ (36) Conde Poderoso,A (2367)-Plas,R (2350) ICCF email 2018}) 11... f6 $11 {[%emt 0:08:40]} 12. O-O {[%emt 0:22:42]} (12. exf6 $15 Qxf6 13. O-O) 12... fxe5 $17 {[%emt 0:05:39]} 13. Bb5 {[%emt 0:00:51]} Nxb4 {[%emt 0:09:49]} 14. Bxd7+ {[%emt 0:00:08]} Qxd7 {[%emt 0:00:42]} (14... Kxd7 15. axb4 Nf7 16. Re1 $17) 15. Nxe5 {[%emt 0:02:37]} (15. axb4 $17 Nf7 16. Re1) 15... Qc7 $1 $19 {[%emt 0:02:25][%csl LRc2,LRe5]} 16. Re1 $2 {[%emt 0:06:05] [#]} (16. Qh5+ Nf7 17. Nxf7 Qxf7 18. Qxf7+ Kxf7 19. axb4) 16... Nc6 {[%emt 0:10:00]} ({Stronger than} 16... Nxc2 17. Rc1 Rc8 18. Re2 $15) 17. Qh5+ {[%emt 0:00:06]} Kf8 {[%emt 0:04:24]} 18. Nf3 {[%emt 0:04:54]} Qf7 {[%emt 0:04:56]} 19. Qh3 {[%emt 0:00:55]} Re8 {[%emt 0:08:30]} 20. b4 {[%emt 0:07:05]} Qf6 {[%emt 0:10:38]} 21. Rad1 {[%emt 0:03:35]} b5 {[%emt 0:05:12]} 22. a4 {[%emt 0:00:06]} a6 {[%emt 0:00:04][%cal Ba7a6,Ba6b5][%mdl 32]} ({Avoid the trap} 22... bxa4 $2 23. b5 Nd8 24. Rxd4 $19) 23. axb5 {[%emt 0:04:53]} axb5 {[%emt 0:00:06]} 24. Ra1 {[%emt 0:02:01]} Nf7 {[%emt 0:08:42]} 25. Ra6 {[%emt 0:01:22]} Ncd8 {[%emt 0:00:40]} 26. Qg3 {[%emt 0:02:09]} g6 {[%emt 0:02:14]} 27. Qb8 {[%emt 0:01:10]} Kg7 {[%emt 0:01:20]} 28. Qxb5 {[%emt 0:00:09]} Rhf8 {[%emt 0:00:31] Hoping for ...Ng5.} 29. Ra7 {[%emt 0:02:35]} (29. h4 $142) 29... Kg8 {[%emt 0:01:29]} 30. Qd7 {[%emt 0:00:21]} Ng5 {[%emt 0:03:45]} 31. b5 {[%emt 0:00:42]} Nxf3+ {[%emt 0:00:44]} 32. gxf3 {[%emt 0:00:01]} Qf7 {[%emt 0:00:39]} 33. b6 {[%emt 0:00:22]} Qxd7 {[%emt 0:00:53]} 34. Rxd7 {[%emt 0:00:01]} Rf7 {[%emt 0:00:20]} ({Don't blunder} 34... Rxf3 $2 35. b7 Nc6 36. Rd6) 35. Rc7 {[%emt 0:00:26]} (35. Rxd5 $142 Rb7 36. Rd6) 35... Nb7 {[%emt 0:02:59] Black is clearly winning.} 36. Rb1 {[%emt 0:01:11]} Rxc7 37. bxc7 {[%emt 0:00:02][%mdl 4096] Endgame KRN-KR} Nd6 {[%emt 0:00:50]} 38. Rb8 {[%emt 0:00:12] [#] Strongly threatening Rxe8+.} Nc8 {[%emt 0:00:21]} 39. Kf1 {[%emt 0:00:35]} Kf7 {[%emt 0:00:27]} 40. Ke2 {[%emt 0:00:03]} Ke7 {[%emt 0:00:22]} 41. Kd3 {[%emt 0:30:08]} Kd7 {[%emt 0:30:43]} 42. Rb7 {[%emt 0:00:21]} Kc6 {[%emt 0:00:16] White did not feel at home in the position after the opening.  Weighted Error Value: White=0.51/Black=0.21 (precise)} 0-1

[Event "121st Swiss Championship 2022"]
[Site "Samnaun-Compatsch"]
[Date "2022.07.06"]
[Round "4.7"]
[White "Pavlovic, Milos"]
[Black "Sedina, Yelena"]
[Result "1-0"]
[ECO "A21"]
[WhiteElo "2461"]
[BlackElo "2215"]
[Annotator "TA"]
[PlyCount "81"]
[EventDate "2022.06.28"]
[EventType "swiss"]
[EventCountry "SUI"]
[SourceTitle "playchess.com"]
[Source "ChessBase"]
[SourceQuality "1"]
[TimeControl "40/5400+30:1800+30"]

{[%evp 9,81,22,14,14,20,22,20,20,20,19,28,22,43,42,59,58,49,9,51,45,47,45,41,27,33,20,29,14,54,31,41,0,39,0,0,0,0,0,0,0,0,0,5,0,2,0,0,0,0,0,22,14,22,13,15,0,14,11,104,121,202,189,245,204,401,404,730,729,29991,29992,29992,29993,29993,29994]} 1. c4 {[%emt 0:00:02]} e5 {[%emt 0:04:55]} 2. Nc3 {[%emt 0:00:14]} Bb4 {[%emt 0:03:24]} 3. Nd5 {[%emt 0:03:51]} Be7 {[%emt 0:02:13]} 4. d4 {[%emt 0:00:34]} d6 {[%emt 0:00:13]} 5. Nf3 {[%emt 0:02:42]} e4 {[%emt 0:11:18]} 6. Nd2 {[%emt 0:00:09] A21: English Opening: 1...e5 2 Nc3.} f5 {[%emt 0:00:13]} 7. Nb1 {[%emt 0:05:45]} Nf6 {[%emt 0:03:56]} 8. Nxe7 {[%emt 0:05:02] The position is equal.} Qxe7 {[%emt 0:00:08]} 9. Nc3 {[%emt 0:00:04]} O-O {[%emt 0:02:26]} 10. Bg5 {[%emt 0:04:05]} c6 {[%emt 0:05:30] Prevents Nd5.} 11. e3 {[%emt 0:00:37] [#]} Na6 $146 {[%emt 0:04:33]} ({Predecessor:} 11... h6 12. Bxf6 Rxf6 13. Be2 Nd7 14. O-O Rf8 15. b4 Nf6 16. b5 c5 17. Qd2 Be6 {½-½ (45) Zvjaginsev,V (2599)-Tazbir,M (2508) Warsaw 2021}) 12. Be2 {[%emt 0:33:05]} Nc7 {[%emt 0:00:35]} 13. d5 {[%emt 0:02:32]} c5 {[%emt 0:11:38]} 14. Qd2 {[%emt 0:07:03]} Bd7 {[%emt 0:04:10]} 15. a3 {[%emt 0:01:48]} a5 {[%emt 0:11:12]} 16. b3 {[%emt 0:08:02]} h6 {[%emt 0:01:54]} 17. Bf4 {[%emt 0:00:21]} Be8 {[%emt 0:02:11]} 18. O-O {[%emt 0:01:58]} Bh5 {[%emt 0:08:18]} 19. Rab1 {[%emt 0:07:26]} Bxe2 {[%emt 0:02:45]} 20. Nxe2 {[%emt 0:00:48]} Nd7 {[%emt 0:00:53]} 21. b4 {[%emt 0:00:20]} axb4 {[%emt 0:03:20]} 22. axb4 {[%emt 0:00:07]} Na6 {[%emt 0:00:30]} 23. bxc5 {[%emt 0:02:18]} Naxc5 {[%emt 0:00:18]} 24. Nd4 {[%emt 0:00:29]} Ne5 {[%emt 0:05:00]} 25. Bxe5 {[%emt 0:02:37]} Qxe5 {[%emt 0:00:02]} 26. Nb3 {[%emt 0:05:02]} Rfc8 {[%emt 0:00:57]} 27. Nd4 {[%emt 0:04:03]} Ra4 {[%emt 0:02:02]} 28. Qc2 {[%emt 0:00:27][%cal Ob1b7]} Rca8 {[%emt 0:00:35]} 29. g3 {[%emt 0:00:18]} Ra3 {[%emt 0:04:29]} 30. Qd1 {[%emt 0:01:04]} R3a4 {[%emt 0:03:07]} 31. Qe2 {[%emt 0:01:17]} Kh7 {[%emt 0:00:18]} 32. Rb6 {[%emt 0:00:32]} Ra2 {[%emt 0:01:00]} 33. Qh5 {[%emt 0:00:18] [#] Threatens to win with Qf7.} g6 {[%emt 0:02:09]} (33... Rf8 $11 {keeps the balance.}) 34. Qh4 $16 {[%emt 0:00:47]} Re8 {[%emt 0:00:37]} (34... R2a6 $16 35. Rfb1 Rg8) 35. Rfb1 $18 {[%emt 0:00:18] And now Rxb7+ would win.} Ra7 {[%emt 0:00:22]} (35... Rg8 {was necessary.} 36. Nb3 Nxb3 37. Rxb7+ (37. R1xb3 Ra7 $16) (37. R6xb3 Ra1 $16) 37... Rg7 38. R1xb3 (38. R7xb3 Ra1 $16) 38... Ra7) 36. Kg2 {[%emt 0:01:06]} Rea8 $2 {[%emt 0:00:25]} (36... Rf8 {is a better defense.} 37. Nb5 Ra6 38. Nxd6 Rxb6 39. Rxb6 Rf6) 37. Nb5 {[%emt 0:00:49][%csl LRa7,LRd6]} Ra2 {[%emt 0:00:43]} (37... Ra6 $142) 38. Nxd6 {[%emt 0:00:22] Strongly threatening Nf7.} Nd3 {[%emt 0:00:06]} 39. Rxb7+ {[%emt 0:00:28] White mates.} Kg8 {[%emt 0:00:05] [#]} 40. Qxh6 $1 {[%emt 0:00:22]} Rxf2+ {[%emt 0:00:04]} 41. Kg1 {[%emt 0:30:36] Weighted Error Value: White=0.07 (flawless) /Black=0.45} 1-0

[Event "121st Swiss Championship 2022"]
[Site "Samnaun-Compatsch"]
[Date "2022.07.06"]
[Round "4.8"]
[White "Lou, Vincent"]
[Black "Buehler, Michael"]
[Result "1/2-1/2"]
[ECO "E36"]
[WhiteElo "2200"]
[BlackElo "2064"]
[Annotator "TA"]
[PlyCount "50"]
[EventDate "2022.06.28"]
[EventType "swiss"]
[EventCountry "SUI"]
[SourceTitle "playchess.com"]
[Source "ChessBase"]
[SourceQuality "1"]
[TimeControl "40/5400+30:1800+30"]

{[%evp 15,50,15,8,0,20,4,26,20,30,-6,16,0,20,14,8,-118,-94,-92,-108,-148,-145,-229,-209,-206,0,0,0,0,0,0,0,0,0,0,0,0,0]} 1. d4 {[%emt 0:00:03]} Nf6 {[%emt 0:00:15]} 2. c4 {[%emt 0:00:11]} e6 {[%emt 0:00:13]} 3. Nc3 {[%emt 0:00:08]} Bb4 {[%emt 0:00:31]} 4. Qc2 {[%emt 0:00:03]} d5 {[%emt 0:00:31]} 5. a3 {[%emt 0:00:12]} Bxc3+ {[%emt 0:00:15]} 6. Qxc3 {[%emt 0:00:06]} O-O {[%emt 0:00:35]} 7. Nf3 {[%emt 0:00:04]} dxc4 {[%emt 0:01:03]} 8. Qxc4 {[%emt 0:02:12]} b6 {[%emt 0:00:55]} 9. Bg5 {[%emt 0:00:07] E36: Nimzo-Indian: Classical: 4...d5 5 a3.} Ba6 {[%emt 0:00:43]} 10. Qa4 {[%emt 0:00:11]} c5 {[%emt 0:00:41]} 11. dxc5 {[%emt 0:00:27] Black must now prevent c6. White has an edge.} bxc5 {[%emt 0:00:18]} 12. Rc1 {[%emt 0:01:11]} Qb6 {[%emt 0:01:19]} (12... h6 $5 {[%cal Rh6g5]} 13. Rd1 Qb6 14. Bxf6 gxf6 $11) 13. Bxf6 {[%emt 0:01:51]} gxf6 {[%emt 0:00:10]} 14. Rc2 {[%emt 0:00:10]} c4 {[%emt 0:01:36] [#]} 15. Nd2 $146 {[%emt 0:20:50]} (15. e3 $11) ({Predecessor:} 15. e3 Bb5 16. Qb4 Nc6 17. Qc3 Qa5 18. Bxc4 Bxc4 19. b4 Qf5 20. Qxc4 Rac8 21. e4 {½-½ (90) Rajlich,I (2441)-Gajek,R (2203) Warsaw 2012}) 15... Nc6 $1 $17 {[%emt 0:26:47]} 16. Nxc4 {[%emt 0:03:13]} Bxc4 {[%emt 0:00:09]} 17. Qxc4 {[%emt 0:24:18]} Nd4 {[%emt 0:01:49]} 18. Rc3 {[%emt 0:02:55] [#]} ({Don't blunder} 18. Rd2 $2 Rac8 $1 19. Rxd4 Rxc4 20. Rxc4 Qxb2 $19) (18. Rc1 $17 Qxb2 19. Qc3) 18... Qxb2 $1 $19 {[%emt 0:21:00][%cal Of8c8] Threatens to win with ...Rfc8!} 19. e3 {[%emt 0:01:53] [#]} ({But not} 19. Qxd4 $2 Qa1+ 20. Kd2 Rad8 $19) 19... Nf5 {[%emt 0:04:11]} ({Black should play} 19... Rac8 $1 $19 {[%cal Rc8c4]} 20. Qxc8 Nb3) 20. Bd3 $11 {[%emt 0:25:05] The position is equal.} Nd6 {[%emt 0:16:17]} 21. Qg4+ {[%emt 0:04:56]} Kh8 {[%emt 0:00:04]} 22. Qb4 {[%emt 0:03:27]} Qa1+ {[%emt 0:01:05]} 23. Ke2 {[%emt 0:00:19]} Qxh1 {[%emt 0:01:11]} 24. Qh4 {[%emt 0:00:06][%csl Gd3][%cal Rh4h7] The board is on fire. Active counter play!} f5 {[%emt 0:02:20]} 25. Qf6+ {[%emt 0:02:10]} Kg8 {[%emt 0:00:09] Weighted Error Value: White=0.22 (precise) /Black=0.19 (very precise)} 1/2-1/2

[Event "121st Swiss Championship 2022"]
[Site "Samnaun-Compatsch"]
[Date "2022.07.06"]
[Round "4.9"]
[White "Schlegel, Igor"]
[Black "Perreard, Nicolas"]
[Result "1-0"]
[ECO "C42"]
[WhiteElo "2194"]
[BlackElo "2055"]
[Annotator "TA"]
[PlyCount "53"]
[EventDate "2022.06.28"]
[EventType "swiss"]
[EventCountry "SUI"]
[SourceTitle "playchess.com"]
[Source "ChessBase"]
[SourceQuality "1"]
[TimeControl "40/5400+30:1800+30"]

{[%evp 13,53,16,6,8,15,4,0,9,2,17,41,37,56,53,68,60,64,63,66,62,78,56,77,5,0,0,0,0,62,67,63,68,50,61,404,404,1100,1100,1077,1066,1063,1056]} 1. e4 {[%emt 0:00:02]} e5 {[%emt 0:00:07]} 2. Nf3 {[%emt 0:00:03]} Nf6 {[%emt 0:00:07]} 3. Nxe5 {[%emt 0:00:04]} d6 {[%emt 0:00:05]} 4. Nf3 {[%emt 0:00:04]} Nxe4 {[%emt 0:00:06]} 5. Nc3 {[%emt 0:00:03]} Nxc3 {[%emt 0:00:08]} 6. dxc3 {[%emt 0:00:06]} Be7 {[%emt 0:00:05]} 7. Be3 {[%emt 0:00:05]} Nd7 {[%emt 0:00:14]} 8. Qd2 {[%emt 0:00:11] C42: Petroff Defence: 3 Nxe5 and unusual White 3rd moves.} O-O {[%emt 0:00:21]} 9. O-O-O {[%emt 0:00:08]} c6 {[%emt 0:00:12]} 10. Kb1 {[%emt 0:00:45] The position is equal.} d5 {[%emt 0:00:29]} 11. h4 $1 {[%emt 0:00:14] 11.h4 is better than 11.c4.} Nc5 {[%emt 0:00:59] [#]} 12. c4 $146 {[%emt 0:00:14][%cal Rc4d5]} ({Predecessor:} 12. h5 Ne4 13. Qc1 Bg4 14. h6 g6 15. Bd3 Bxf3 16. gxf3 Nc5 17. Bf1 b5 18. f4 {0-1 (31) Ruiz Castillo,J (2367)-Saltos Velez,A (2099) Medellin 2017}) 12... Ne4 {[%emt 0:02:38]} 13. Qc1 {[%emt 0:00:32]} Be6 {[%emt 0:06:28]} 14. cxd5 {[%emt 0:12:11]} (14. Ng5 {looks sharper.} Qa5 15. Bd3 Bf6 16. cxd5 cxd5 17. Nxe6 fxe6 18. Bxe4 dxe4 19. c3) 14... cxd5 {[%emt 0:00:12]} 15. Nd4 {[%emt 0:13:54]} Rc8 {[%emt 0:04:15]} 16. Bd3 {[%emt 0:07:17] Strongly threatening Bxe4.} Nc5 {[%emt 0:00:56]} 17. Be2 {[%emt 0:00:17] White is more active.} Qb6 {[%emt 0:01:16]} 18. Rhe1 {[%emt 0:23:14]} ({But not} 18. Nxe6 Qxe6 19. c3 Bf6 $14) (18. Bf3 $16) 18... Bxh4 $11 {[%emt 0:07:39]} 19. Nxe6 {[%emt 0:02:22]} fxe6 {[%emt 0:00:13]} 20. Bg4 {[%emt 0:00:09] g3 is the strong threat.} Rfe8 {[%emt 0:03:55]} ({Black should try} 20... Bxf2 $11 21. Bxc5 Rxc5 22. Rxe6 Rc6) 21. Bd4 $1 $14 {[%emt 0:03:41] aiming for Rh1. This bishop pair is nice.} Bf6 {[%emt 0:09:47]} 22. Bxf6 {[%emt 0:04:55]} gxf6 {[%emt 0:00:08]} 23. Qh6 {[%emt 0:00:28]} Nd7 $2 {[%emt 0:02:06][%mdl 8192] [#] Black cannot hold the game after this.} ({Black should play} 23... Na4 $14 24. Qxf6 Nc3+ 25. Ka1 Nxd1 26. Bxe6+ (26. Qg5+ Kh8 $16) 26... Rxe6 27. Rxe6 Qxb2+ 28. Qxb2 Nxb2 29. Kxb2 Rc7) 24. Re3 $1 $18 {[%emt 0:12:37] White wants to mate with Rg3.} ({Not} 24. Rh1 Re7 $14) 24... Kh8 {[%emt 0:09:30]} (24... Re7 $142 25. Bxe6+ Qxe6) 25. Rh1 {[%emt 0:00:38][%csl Gh1][%cal Rh6h7] White is clearly winning.} Re7 {[%emt 0:01:28] [#]} 26. Rxe6 $1 {[%emt 0:00:32][%mdl 512]} Qd8 {[%emt 0:00:24]} (26... Qxe6 27. Bxe6) 27. Bf5 {[%emt 0:06:45] Weighted Error Value: White=0.07 (flawless) /Black=0.45} 1-0